Department family,Entity,Date,Expense type,Expense area,Supplier,Transaction number,Amount
Department of Health,Leicestershire Partnership NHS Trust,02/07/18,Crs_NHS_LT1y -Resus Inventory Supplied.,Balance Sheet Collection,NHS SUPPLY CHAIN (ST1450),1019060952,53186.70
Department of Health,Leicestershire Partnership NHS Trust,02/07/18,NURSE - BAND 5 - AGENCY,AGNES UNIT POD 1,HCL NURSING,MAN28072,623.38
Department of Health,Leicestershire Partnership NHS Trust,02/07/18,Nurse - Band 6 -Agency,Adult City East CMHT - Merlyn Vaz,HCL NURSING,MAN28072,2624.05
Department of Health,Leicestershire Partnership NHS Trust,02/07/18,Nurse - Band 6 -Agency,Adult County Charnwood CMHT - Loughborough Base,HCL NURSING,MAN28072,1046.16
Department of Health,Leicestershire Partnership NHS Trust,02/07/18,Nurse - Band 6 -Agency,Adult County North West Leicestershire CMHT,HCL NURSING,MAN28072,1116.48
Department of Health,Leicestershire Partnership NHS Trust,02/07/18,NURSE - BAND 2 - AGENCY,Ashby Ward (Bradgate Unit),HCL NURSING,MAN28072,168.41
Department of Health,Leicestershire Partnership NHS Trust,02/07/18,NURSE - BAND 5 - AGENCY,Ashby Ward (Bradgate Unit),HCL NURSING,MAN28072,329.85
Department of Health,Leicestershire Partnership NHS Trust,02/07/18,NURSE - BAND 2 - AGENCY,Aston Ward (Bradgate Unit),HCL NURSING,MAN28072,396.91
Department of Health,Leicestershire Partnership NHS Trust,02/07/18,NURSE - BAND 5 - AGENCY,Aston Ward (Bradgate Unit),HCL NURSING,MAN28072,2985.86
Department of Health,Leicestershire Partnership NHS Trust,02/07/18,NURSE - BAND 2 - AGENCY,Beaumont Ward - Bradgate Unit,HCL NURSING,MAN28072,194.43
Department of Health,Leicestershire Partnership NHS Trust,02/07/18,NURSE - BAND 5 - AGENCY,Beaumont Ward - Bradgate Unit,HCL NURSING,MAN28072,656.43
Department of Health,Leicestershire Partnership NHS Trust,02/07/18,NURSE - BAND 2 - AGENCY,Belvoir Psychiatric Intensive Care Unit,HCL NURSING,MAN28072,832.66
Department of Health,Leicestershire Partnership NHS Trust,02/07/18,NURSE - BAND 5 - AGENCY,Belvoir Psychiatric Intensive Care Unit,HCL NURSING,MAN28072,1359.82
Department of Health,Leicestershire Partnership NHS Trust,02/07/18,Nurse - Band 6 -Agency,Crisis Resolution,HCL NURSING,MAN28072,3993.45
Department of Health,Leicestershire Partnership NHS Trust,02/07/18,NURSE - BAND 5 - AGENCY,Griffin Ward (HPC),HCL NURSING,MAN28072,1520.20
Department of Health,Leicestershire Partnership NHS Trust,02/07/18,NURSE - BAND 2 - AGENCY,Heather Ward,HCL NURSING,MAN28072,347.15
Department of Health,Leicestershire Partnership NHS Trust,02/07/18,NURSE - BAND 5 - AGENCY,Heather Ward,HCL NURSING,MAN28072,1939.73
Department of Health,Leicestershire Partnership NHS Trust,02/07/18,NURSE - BAND 5 - AGENCY,Mill Lodge,HCL NURSING,MAN28072,293.55
Department of Health,Leicestershire Partnership NHS Trust,02/07/18,NURSE - BAND 2 - AGENCY,Phoenix Ward (HPC),HCL NURSING,MAN28072,745.70
Department of Health,Leicestershire Partnership NHS Trust,02/07/18,NURSE - BAND 5 - AGENCY,Stewart House,HCL NURSING,MAN28072,289.61
Department of Health,Leicestershire Partnership NHS Trust,02/07/18,NURSE - BAND 2 - AGENCY,Sycamore (Willows),HCL NURSING,MAN28072,168.41
Department of Health,Leicestershire Partnership NHS Trust,02/07/18,NURSE - BAND 5 - AGENCY,Thornton Ward - Bradgate Unit,HCL NURSING,MAN28072,1299.84
Department of Health,Leicestershire Partnership NHS Trust,02/07/18,NURSE - BAND 5 - AGENCY,Watermead Ward (Bradgate Unit),HCL NURSING,MAN28072,1052.52
Department of Health,Leicestershire Partnership NHS Trust,03/07/18,External Data Processing / Storage,Records & information Governance,C & V DATA MANAGEMENT SRV LTD,0063869,31645.98
Department of Health,Leicestershire Partnership NHS Trust,03/07/18,External Data Processing / Storage,Records & information Governance,C & V DATA MANAGEMENT SRV LTD,0063312,29846.51
Department of Health,Leicestershire Partnership NHS Trust,04/07/18,Services / Recharges from NHS Trusts,Inter Unit I & E Distribution,UHL NHS TRUST (RWE),L0212035,179992.55
Department of Health,Leicestershire Partnership NHS Trust,04/07/18,Occupational Health,HR Operations,UHL NHS TRUST (RWE),L0212029,26622.00
Department of Health,Leicestershire Partnership NHS Trust,04/07/18,UHL Facilities Management SLA,Estates Central Invoices To Recharge,UHL NHS TRUST (RWE),L0211787,827106.58
Department of Health,Leicestershire Partnership NHS Trust,04/07/18,UHL Facilities Management SLA,Estates Central Invoices To Recharge,UHL NHS TRUST (RWE),L0211788,827106.58
Department of Health,Leicestershire Partnership NHS Trust,04/07/18,External Consultancy Fees,CMS Reserves,BLOOM PROC SERV LTD,014992,32400.00
Department of Health,Leicestershire Partnership NHS Trust,05/07/18,Rent,"St Peters Health Center (Part 1st and 2nd floors) (P66, LPT)",LEICESTER LIFT CO,LEP1/SI23,26127.54
Department of Health,Leicestershire Partnership NHS Trust,05/07/18,WIP Project Not in BS - Information Technology,Work in Progress,DELL COMPUTERS,7402447718,35017.92
Department of Health,Leicestershire Partnership NHS Trust,05/07/18,CONSULTANT HONOURARY,CAMHS CITY TEAM,UNIVERSITY OF LEICESTER,2230102712,5879.55
Department of Health,Leicestershire Partnership NHS Trust,05/07/18,CONSULTANT HONOURARY,Medical Director - Hq Report,UNIVERSITY OF LEICESTER,2230102712,124426.56
Department of Health,Leicestershire Partnership NHS Trust,05/07/18,CONSULTANT,Medical Trainees,UNIVERSITY OF LEICESTER,2230102712,9633.50
Department of Health,Leicestershire Partnership NHS Trust,05/07/18,SPECIALITY TRAINING 4-6 (ST 4-6),Medical Trainees,UNIVERSITY OF LEICESTER,2230102712,8448.89
Department of Health,Leicestershire Partnership NHS Trust,05/07/18,PSYCHOLOGIST - BAND 8D,Psychology Students,UNIVERSITY OF LEICESTER,2230102712,3059.00
Department of Health,Leicestershire Partnership NHS Trust,05/07/18,CONSULTANT,Service Increment For Teaching Income (SIFT),UNIVERSITY OF LEICESTER,2230102712,9633.50
Department of Health,Leicestershire Partnership NHS Trust,06/07/18,CHP Estates Management,Belgrave Health Centre (CHP),COMM HLTH PARTNERSHIPS LTD,0060073559,9041.24
Department of Health,Leicestershire Partnership NHS Trust,06/07/18,CHP Estates Management,Merlyn Vaz Centre (CHP),COMM HLTH PARTNERSHIPS LTD,0060073559,60957.31
Department of Health,Leicestershire Partnership NHS Trust,06/07/18,CHP Estates Management,Westcotes Health Centre (CHP),COMM HLTH PARTNERSHIPS LTD,0060073559,11853.09
Department of Health,Leicestershire Partnership NHS Trust,06/07/18,External Consultancy Fees,Finance Department,SOFTWARE BOX LTD,INV97519,30347.99
Department of Health,Leicestershire Partnership NHS Trust,06/07/18,Telephone equipment,New Parks Health Centre (PROPCO),VIRGIN MEDIA BUSINESS,60035153,21750.58
Department of Health,Leicestershire Partnership NHS Trust,06/07/18,Telephone equipment,SPA,VIRGIN MEDIA BUSINESS,60035153,8298.55
Department of Health,Leicestershire Partnership NHS Trust,09/07/18,Leased / Hired Vehicles,360 Assurance - PPV,AUTOMOTIVE LEASING LTD,504085221,281.00
Department of Health,Leicestershire Partnership NHS Trust,09/07/18,Leased / Hired Vehicles,Assertive Outreach Services,AUTOMOTIVE LEASING LTD,504085221,158.17
Department of Health,Leicestershire Partnership NHS Trust,09/07/18,Leased / Hired Vehicles,Autism,AUTOMOTIVE LEASING LTD,504085221,638.96
Department of Health,Leicestershire Partnership NHS Trust,09/07/18,Prep_ LT1y -Prepayments Lease Cars,Balance Sheet Collection,AUTOMOTIVE LEASING LTD,504085221,58293.36
Department of Health,Leicestershire Partnership NHS Trust,09/07/18,Trade_Drs_LT1y -Lease Cars Invoicing Contrl Ac.,Balance Sheet Collection,AUTOMOTIVE LEASING LTD,504085221,277.91
Department of Health,Leicestershire Partnership NHS Trust,09/07/18,Leased / Hired Vehicles,County 0-19 Hinckley & Bosworth HV,AUTOMOTIVE LEASING LTD,504085221,90.00
Department of Health,Leicestershire Partnership NHS Trust,09/07/18,Leased / Hired Vehicles,East Planned Care - Blaby/Lutterworth,AUTOMOTIVE LEASING LTD,504085221,274.00
Department of Health,Leicestershire Partnership NHS Trust,09/07/18,Leased / Hired Vehicles,Evening Service,AUTOMOTIVE LEASING LTD,504085221,179.94
Department of Health,Leicestershire Partnership NHS Trust,09/07/18,Leased / Hired Vehicles,Immunisation,AUTOMOTIVE LEASING LTD,504085221,1024.80
Department of Health,Leicestershire Partnership NHS Trust,09/07/18,Leased / Hired Vehicles,Mill Lodge,AUTOMOTIVE LEASING LTD,504085221,262.30
Department of Health,Leicestershire Partnership NHS Trust,09/07/18,Leased / Hired Vehicles,Unscheduled Care - West Locality,AUTOMOTIVE LEASING LTD,504085221,383.00
Department of Health,Leicestershire Partnership NHS Trust,09/07/18,Leased / Hired Vehicles,West Planned Care  - Charnwood Hub,AUTOMOTIVE LEASING LTD,504085221,346.00
Department of Health,Leicestershire Partnership NHS Trust,09/07/18,Crs_NHS_LT1y -Resus Inventory Supplied.,Balance Sheet Collection,NHS SUPPLY CHAIN (ST1450),1019066592,39413.60
Department of Health,Leicestershire Partnership NHS Trust,10/07/18,Network Costs - WAN Maint,HIS Infrastructure,VIRGIN MEDIA BUSINESS,262421-145,45492.59
Department of Health,Leicestershire Partnership NHS Trust,10/07/18,FP10'S,Adult City Central CMHT - St Peters,NHS BUS SERVICES AUTHORITY,1000056314,382.10
Department of Health,Leicestershire Partnership NHS Trust,10/07/18,FP10'S,Adult City East CMHT - St Peters,NHS BUS SERVICES AUTHORITY,1000056314,10794.18
Department of Health,Leicestershire Partnership NHS Trust,10/07/18,FP10'S,Adult County Drugs,NHS BUS SERVICES AUTHORITY,1000056314,28657.13
Department of Health,Leicestershire Partnership NHS Trust,10/07/18,FP10'S,CAMHS County Outpatients,NHS BUS SERVICES AUTHORITY,1000056314,16239.05
Department of Health,Leicestershire Partnership NHS Trust,10/07/18,FP10'S,Children Services Medical,NHS BUS SERVICES AUTHORITY,1000056314,6113.52
Department of Health,Leicestershire Partnership NHS Trust,10/07/18,FP10'S,Dementia Related Drugs and Investigations,NHS BUS SERVICES AUTHORITY,1000056314,8024.00
Department of Health,Leicestershire Partnership NHS Trust,10/07/18,FP10'S,Eating Disorders Outpatient Service,NHS BUS SERVICES AUTHORITY,1000056314,573.14
Department of Health,Leicestershire Partnership NHS Trust,10/07/18,FP10'S,Leicestershire Psych-oncology Service,NHS BUS SERVICES AUTHORITY,1000056314,382.10
Department of Health,Leicestershire Partnership NHS Trust,10/07/18,FP10'S,PIER Team - Early Intervention Services,NHS BUS SERVICES AUTHORITY,1000056314,15761.42
Department of Health,Leicestershire Partnership NHS Trust,10/07/18,FP10'S,Pharmacy,NHS BUS SERVICES AUTHORITY,1000056314,1910.48
Department of Health,Leicestershire Partnership NHS Trust,10/07/18,FP10'S,Snr Med Staff (Inc Med Reps),NHS BUS SERVICES AUTHORITY,1000056314,6686.66
Department of Health,Leicestershire Partnership NHS Trust,10/07/18,Payroll Deductions -Salary Sacrifice Cars Scheme,Balance Sheet Collection,TUSKER,LPT801-0718,27933.58
Department of Health,Leicestershire Partnership NHS Trust,11/07/18,Medical Equipment Repairs / Maintenance,Medical Devices Maintenance (LPT),NHS SUPPLY CHAIN (ST1450),2019001456,47296.99
Department of Health,Leicestershire Partnership NHS Trust,12/07/18,NURSE - BAND 2 - AGENCY,Beechwood Ward,HCL NURSING,MAN28109,618.56
Department of Health,Leicestershire Partnership NHS Trust,12/07/18,Nurse - Band 6 -Agency,City East CMHT MHSOP,HCL NURSING,MAN28109,836.93
Department of Health,Leicestershire Partnership NHS Trust,12/07/18,NURSE - BAND 5 - AGENCY,City ICS,HCL NURSING,MAN28109,2511.83
Department of Health,Leicestershire Partnership NHS Trust,12/07/18,NURSE - BAND 5 - AGENCY,City Planned Care - East,HCL NURSING,MAN28109,6074.22
Department of Health,Leicestershire Partnership NHS Trust,12/07/18,NURSE - BAND 5 - AGENCY,City Planned Care - West,HCL NURSING,MAN28109,3984.23
Department of Health,Leicestershire Partnership NHS Trust,12/07/18,Nurse - Band 6 -Agency,City West CMHT MHSOP,HCL NURSING,MAN28109,975.51
Department of Health,Leicestershire Partnership NHS Trust,12/07/18,NURSE - BAND 2 - AGENCY,Clarendon Ward,HCL NURSING,MAN28109,254.97
Department of Health,Leicestershire Partnership NHS Trust,12/07/18,NURSE - BAND 2 - AGENCY,Coalville Snibston Ward,HCL NURSING,MAN28109,403.80
Department of Health,Leicestershire Partnership NHS Trust,12/07/18,NURSE - BAND 2 - AGENCY,Coleman Ward,HCL NURSING,MAN28109,113.85
Department of Health,Leicestershire Partnership NHS Trust,12/07/18,NURSE - BAND 2 - AGENCY,Dalgliesh Ward,HCL NURSING,MAN28109,211.93
Department of Health,Leicestershire Partnership NHS Trust,12/07/18,NURSE - BAND 5 - AGENCY,Dalgliesh Ward,HCL NURSING,MAN28109,792.30
Department of Health,Leicestershire Partnership NHS Trust,12/07/18,NURSE - BAND 5 - AGENCY,"East Planned Care - Melton,Syston,Rutland",HCL NURSING,MAN28109,3061.22
Department of Health,Leicestershire Partnership NHS Trust,12/07/18,NURSE - BAND 3 - AGENCY,"East Planned Care - Oadby,Wigston & Harborough",HCL NURSING,MAN28109,1525.45
Department of Health,Leicestershire Partnership NHS Trust,12/07/18,NURSE - BAND 5 - AGENCY,Evening Service,HCL NURSING,MAN28109,773.27
Department of Health,Leicestershire Partnership NHS Trust,12/07/18,NURSE - BAND 2 - AGENCY,Fielding Palmer Nursing,HCL NURSING,MAN28109,533.85
Department of Health,Leicestershire Partnership NHS Trust,12/07/18,NURSE - BAND 5 - AGENCY,Fielding Palmer Nursing,HCL NURSING,MAN28109,1722.54
Department of Health,Leicestershire Partnership NHS Trust,12/07/18,NURSE - BAND 2 - AGENCY,Gwendolen Ward,HCL NURSING,MAN28109,189.73
Department of Health,Leicestershire Partnership NHS Trust,12/07/18,NURSE - BAND 5 - AGENCY,Gwendolen Ward,HCL NURSING,MAN28109,302.58
Department of Health,Leicestershire Partnership NHS Trust,12/07/18,NURSE - BAND 2 - AGENCY,H&B Comm Hosp East Ward,HCL NURSING,MAN28109,336.82
Department of Health,Leicestershire Partnership NHS Trust,12/07/18,NURSE - BAND 2 - AGENCY,H&B Comm Hosp North Ward,HCL NURSING,MAN28109,1663.40
Department of Health,Leicestershire Partnership NHS Trust,12/07/18,NURSE - BAND 5 - AGENCY,H&B Comm Hosp North Ward,HCL NURSING,MAN28109,917.54
Department of Health,Leicestershire Partnership NHS Trust,12/07/18,NURSE - BAND 2 - AGENCY,Kirby Ward,HCL NURSING,MAN28109,1929.22
Department of Health,Leicestershire Partnership NHS Trust,12/07/18,NURSE - BAND 5 - AGENCY,North West ICS,HCL NURSING,MAN28109,1513.08
Department of Health,Leicestershire Partnership NHS Trust,12/07/18,NURSE - BAND 5 - AGENCY,Rutland Ward Nursing,HCL NURSING,MAN28109,1079.72
Department of Health,Leicestershire Partnership NHS Trust,12/07/18,NURSE - BAND 5 - AGENCY,South East ICS,HCL NURSING,MAN28109,1182.40
Department of Health,Leicestershire Partnership NHS Trust,12/07/18,NURSE - BAND 5 - AGENCY,South West ICS,HCL NURSING,MAN28109,1623.52
Department of Health,Leicestershire Partnership NHS Trust,12/07/18,NURSE - BAND 2 - AGENCY,St Lukes Stroke Ward,HCL NURSING,MAN28109,211.93
Department of Health,Leicestershire Partnership NHS Trust,12/07/18,NURSE - BAND 5 - AGENCY,St Lukes Stroke Ward,HCL NURSING,MAN28109,386.06
Department of Health,Leicestershire Partnership NHS Trust,12/07/18,NURSE - BAND 5 - AGENCY,St Lukes Ward 3,HCL NURSING,MAN28109,2729.90
Department of Health,Leicestershire Partnership NHS Trust,12/07/18,NURSE - BAND 5 - AGENCY,Welford Ward,HCL NURSING,MAN28109,290.27
Department of Health,Leicestershire Partnership NHS Trust,12/07/18,NURSE - BAND 3 - AGENCY,West Planned Care  - Charnwood Hub,HCL NURSING,MAN28109,414.70
Department of Health,Leicestershire Partnership NHS Trust,12/07/18,NURSE - BAND 5 - AGENCY,West Planned Care  - Charnwood Hub,HCL NURSING,MAN28109,3026.63
Department of Health,Leicestershire Partnership NHS Trust,12/07/18,Nurse - Band 6 -Agency,City East CMHT MHSOP,HCL NURSING,MAN28073,836.93
Department of Health,Leicestershire Partnership NHS Trust,12/07/18,NURSE - BAND 5 - AGENCY,City ICS,HCL NURSING,MAN28073,3985.00
Department of Health,Leicestershire Partnership NHS Trust,12/07/18,NURSE - BAND 5 - AGENCY,City Planned Care - East,HCL NURSING,MAN28073,5801.45
Department of Health,Leicestershire Partnership NHS Trust,12/07/18,NURSE - BAND 3 - AGENCY,City Planned Care - West,HCL NURSING,MAN28073,1031.44
Department of Health,Leicestershire Partnership NHS Trust,12/07/18,NURSE - BAND 5 - AGENCY,City Planned Care - West,HCL NURSING,MAN28073,4382.24
Department of Health,Leicestershire Partnership NHS Trust,12/07/18,Nurse - Band 6 -Agency,City West CMHT MHSOP,HCL NURSING,MAN28073,1069.88
Department of Health,Leicestershire Partnership NHS Trust,12/07/18,NURSE - BAND 2 - AGENCY,Clarendon Ward,HCL NURSING,MAN28073,223.60
Department of Health,Leicestershire Partnership NHS Trust,12/07/18,NURSE - BAND 2 - AGENCY,Coalville Snibston Ward,HCL NURSING,MAN28073,1878.83
Department of Health,Leicestershire Partnership NHS Trust,12/07/18,NURSE - BAND 5 - AGENCY,Coalville Snibston Ward,HCL NURSING,MAN28073,1233.30
Department of Health,Leicestershire Partnership NHS Trust,12/07/18,NURSE - BAND 5 - AGENCY,Coleman Ward,HCL NURSING,MAN28073,1205.33
Department of Health,Leicestershire Partnership NHS Trust,12/07/18,NURSE - BAND 2 - AGENCY,Dalgliesh Ward,HCL NURSING,MAN28073,685.84
Department of Health,Leicestershire Partnership NHS Trust,12/07/18,NURSE - BAND 5 - AGENCY,Dalgliesh Ward,HCL NURSING,MAN28073,1015.07
Department of Health,Leicestershire Partnership NHS Trust,12/07/18,NURSE - BAND 5 - AGENCY,"East Planned Care - Melton,Syston,Rutland",HCL NURSING,MAN28073,630.01
Department of Health,Leicestershire Partnership NHS Trust,12/07/18,NURSE - BAND 3 - AGENCY,"East Planned Care - Oadby,Wigston & Harborough",HCL NURSING,MAN28073,823.45
Department of Health,Leicestershire Partnership NHS Trust,12/07/18,NURSE - BAND 5 - AGENCY,Evening Service,HCL NURSING,MAN28073,237.40
Department of Health,Leicestershire Partnership NHS Trust,12/07/18,NURSE - BAND 2 - AGENCY,Fielding Palmer Nursing,HCL NURSING,MAN28073,415.26
Department of Health,Leicestershire Partnership NHS Trust,12/07/18,NURSE - BAND 5 - AGENCY,Fielding Palmer Nursing,HCL NURSING,MAN28073,2479.60
Department of Health,Leicestershire Partnership NHS Trust,12/07/18,NURSE - BAND 2 - AGENCY,Gwendolen Ward,HCL NURSING,MAN28073,1745.32
Department of Health,Leicestershire Partnership NHS Trust,12/07/18,NURSE - BAND 5 - AGENCY,Gwendolen Ward,HCL NURSING,MAN28073,1874.72
Department of Health,Leicestershire Partnership NHS Trust,12/07/18,NURSE - BAND 2 - AGENCY,H&B Comm Hosp East Ward,HCL NURSING,MAN28073,-135.76
Department of Health,Leicestershire Partnership NHS Trust,12/07/18,NURSE - BAND 5 - AGENCY,H&B Comm Hosp East Ward,HCL NURSING,MAN28073,387.10
Department of Health,Leicestershire Partnership NHS Trust,12/07/18,NURSE - BAND 2 - AGENCY,H&B Comm Hosp North Ward,HCL NURSING,MAN28073,2290.37
Department of Health,Leicestershire Partnership NHS Trust,12/07/18,NURSE - BAND 5 - AGENCY,H&B Comm Hosp North Ward,HCL NURSING,MAN28073,405.36
Department of Health,Leicestershire Partnership NHS Trust,12/07/18,NURSE - BAND 2 - AGENCY,Kirby Ward,HCL NURSING,MAN28073,829.69
Department of Health,Leicestershire Partnership NHS Trust,12/07/18,NURSE - BAND 5 - AGENCY,Kirby Ward,HCL NURSING,MAN28073,302.58
Department of Health,Leicestershire Partnership NHS Trust,12/07/18,NURSE - BAND 5 - AGENCY,North East ICS,HCL NURSING,MAN28073,1589.75
Department of Health,Leicestershire Partnership NHS Trust,12/07/18,NURSE - BAND 5 - AGENCY,North West ICS,HCL NURSING,MAN28073,703.79
Department of Health,Leicestershire Partnership NHS Trust,12/07/18,NURSE - BAND 5 - AGENCY,Rutland Ward Nursing,HCL NURSING,MAN28073,1502.56
Department of Health,Leicestershire Partnership NHS Trust,12/07/18,NURSE - BAND 5 - AGENCY,South East ICS,HCL NURSING,MAN28073,7420.44
Department of Health,Leicestershire Partnership NHS Trust,12/07/18,NURSE - BAND 2 - AGENCY,St Lukes Stroke Ward,HCL NURSING,MAN28073,1130.22
Department of Health,Leicestershire Partnership NHS Trust,12/07/18,NURSE - BAND 5 - AGENCY,St Lukes Stroke Ward,HCL NURSING,MAN28073,409.94
Department of Health,Leicestershire Partnership NHS Trust,12/07/18,NURSE - BAND 2 - AGENCY,St Lukes Ward 3,HCL NURSING,MAN28073,635.80
Department of Health,Leicestershire Partnership NHS Trust,12/07/18,NURSE - BAND 5 - AGENCY,St Lukes Ward 3,HCL NURSING,MAN28073,3182.09
Department of Health,Leicestershire Partnership NHS Trust,12/07/18,NURSE - BAND 2 - AGENCY,Welford Ward,HCL NURSING,MAN28073,627.39
Department of Health,Leicestershire Partnership NHS Trust,12/07/18,NURSE - BAND 5 - AGENCY,Welford Ward,HCL NURSING,MAN28073,302.58
Department of Health,Leicestershire Partnership NHS Trust,12/07/18,NURSE - BAND 3 - AGENCY,West Planned Care  - Charnwood Hub,HCL NURSING,MAN28073,479.31
Department of Health,Leicestershire Partnership NHS Trust,12/07/18,NURSE - BAND 5 - AGENCY,West Planned Care  - Charnwood Hub,HCL NURSING,MAN28073,1541.88
Department of Health,Leicestershire Partnership NHS Trust,12/07/18,NURSE - BAND 5 - AGENCY,West Planned Care - NWL Hub,HCL NURSING,MAN28073,-13.08
Department of Health,Leicestershire Partnership NHS Trust,12/07/18,Insurance Costs,Chief Executives Office,NHS LITIGATION AUTHORITY,SICX/00132331,85763.50
Department of Health,Leicestershire Partnership NHS Trust,13/07/18,Rent,360 Assurance - Corporate,COMM HLTH PARTNERSHIPS LTD,0060075188,29707.47
Department of Health,Leicestershire Partnership NHS Trust,16/07/18,Crs_NHS_LT1y -Resus Inventory Supplied.,Balance Sheet Collection,NHS SUPPLY CHAIN (ST1450),1019072329,38564.25
Department of Health,Leicestershire Partnership NHS Trust,16/07/18,WIP Project Not in BS - Buildings excl Dwellings,Work in Progress,INTERSERVE CONSTRUCTION LTD,VEM54796,25265.15
Department of Health,Leicestershire Partnership NHS Trust,16/07/18,WIP Project Not in BS - Information Technology,Work in Progress,DELL COMPUTERS,7402454419,28911.60
Department of Health,Leicestershire Partnership NHS Trust,16/07/18,Payroll Deductions - Kiddi Vouchers,Balance Sheet Collection,WIDER PLAN LTD,4321168,47113.54
Department of Health,Leicestershire Partnership NHS Trust,17/07/18,NURSE - BAND 2 - AGENCY,Acacia (Willows),HCL NURSING,MAN28108,168.41
Department of Health,Leicestershire Partnership NHS Trust,17/07/18,Nurse - Band 6 -Agency,Adult City East CMHT - Merlyn Vaz,HCL NURSING,MAN28108,1973.38
Department of Health,Leicestershire Partnership NHS Trust,17/07/18,Nurse - Band 6 -Agency,Adult County Charnwood CMHT - Loughborough Base,HCL NURSING,MAN28108,1162.95
Department of Health,Leicestershire Partnership NHS Trust,17/07/18,Nurse - Band 6 -Agency,Adult County North West Leicestershire CMHT,HCL NURSING,MAN28108,855.90
Department of Health,Leicestershire Partnership NHS Trust,17/07/18,NURSE - BAND 2 - AGENCY,Ashby Ward (Bradgate Unit),HCL NURSING,MAN28108,336.82
Department of Health,Leicestershire Partnership NHS Trust,17/07/18,NURSE - BAND 5 - AGENCY,Ashby Ward (Bradgate Unit),HCL NURSING,MAN28108,329.83
Department of Health,Leicestershire Partnership NHS Trust,17/07/18,NURSE - BAND 2 - AGENCY,Aston Ward (Bradgate Unit),HCL NURSING,MAN28108,139.09
Department of Health,Leicestershire Partnership NHS Trust,17/07/18,NURSE - BAND 5 - AGENCY,Aston Ward (Bradgate Unit),HCL NURSING,MAN28108,4555.41
Department of Health,Leicestershire Partnership NHS Trust,17/07/18,NURSE - BAND 2 - AGENCY,Beaumont Ward - Bradgate Unit,HCL NURSING,MAN28108,109.19
Department of Health,Leicestershire Partnership NHS Trust,17/07/18,NURSE - BAND 5 - AGENCY,Beaumont Ward - Bradgate Unit,HCL NURSING,MAN28108,877.84
Department of Health,Leicestershire Partnership NHS Trust,17/07/18,NURSE - BAND 5 - AGENCY,Belvoir Psychiatric Intensive Care Unit,HCL NURSING,MAN28108,732.84
Department of Health,Leicestershire Partnership NHS Trust,17/07/18,NURSE - BAND 2 - AGENCY,Bosworth Ward - Bradgate Unit,HCL NURSING,MAN28108,194.43
Department of Health,Leicestershire Partnership NHS Trust,17/07/18,NURSE - BAND 5 - AGENCY,Bosworth Ward - Bradgate Unit,HCL NURSING,MAN28108,392.89
Department of Health,Leicestershire Partnership NHS Trust,17/07/18,Nurse - Band 6 -Agency,Crisis Resolution,HCL NURSING,MAN28108,9200.73
Department of Health,Leicestershire Partnership NHS Trust,17/07/18,Nurse - Band 6 -Agency,Deliberate Self Harm,HCL NURSING,MAN28108,647.24
Department of Health,Leicestershire Partnership NHS Trust,17/07/18,NURSE - BAND 2 - AGENCY,Griffin Ward (HPC),HCL NURSING,MAN28108,204.14
Department of Health,Leicestershire Partnership NHS Trust,17/07/18,NURSE - BAND 5 - AGENCY,Griffin Ward (HPC),HCL NURSING,MAN28108,1981.07
Department of Health,Leicestershire Partnership NHS Trust,17/07/18,NURSE - BAND 2 - AGENCY,Heather Ward,HCL NURSING,MAN28108,180.13
Department of Health,Leicestershire Partnership NHS Trust,17/07/18,NURSE - BAND 5 - AGENCY,Heather Ward,HCL NURSING,MAN28108,3076.50
Department of Health,Leicestershire Partnership NHS Trust,17/07/18,NURSE - BAND 2 - AGENCY,Mill Lodge,HCL NURSING,MAN28108,180.21
Department of Health,Leicestershire Partnership NHS Trust,17/07/18,NURSE - BAND 5 - AGENCY,Mill Lodge,HCL NURSING,MAN28108,321.98
Department of Health,Leicestershire Partnership NHS Trust,17/07/18,NURSE - BAND 2 - AGENCY,Phoenix Ward (HPC),HCL NURSING,MAN28108,1134.52
Department of Health,Leicestershire Partnership NHS Trust,17/07/18,NURSE - BAND 5 - AGENCY,Phoenix Ward (HPC),HCL NURSING,MAN28108,306.52
Department of Health,Leicestershire Partnership NHS Trust,17/07/18,NURSE - BAND 2 - AGENCY,Sycamore (Willows),HCL NURSING,MAN28108,151.90
Department of Health,Leicestershire Partnership NHS Trust,17/07/18,NURSE - BAND 2 - AGENCY,Thornton Ward - Bradgate Unit,HCL NURSING,MAN28108,697.27
Department of Health,Leicestershire Partnership NHS Trust,17/07/18,NURSE - BAND 2 - AGENCY,Watermead Ward (Bradgate Unit),HCL NURSING,MAN28108,478.57
Department of Health,Leicestershire Partnership NHS Trust,17/07/18,NURSE - BAND 5 - AGENCY,Watermead Ward (Bradgate Unit),HCL NURSING,MAN28108,329.81
Department of Health,Leicestershire Partnership NHS Trust,17/07/18,NURSE - BAND 2 - AGENCY,3 Rubicon Close,HCL NURSING,MAN28170,243.10
Department of Health,Leicestershire Partnership NHS Trust,17/07/18,NURSE - BAND 2 - AGENCY,AGNES UNIT POD 1,HCL NURSING,MAN28170,94.95
Department of Health,Leicestershire Partnership NHS Trust,17/07/18,NURSE - BAND 5 - AGENCY,AGNES UNIT POD 1,HCL NURSING,MAN28170,322.37
Department of Health,Leicestershire Partnership NHS Trust,17/07/18,NURSE - BAND 5 - AGENCY,AGNES UNIT POD 2,HCL NURSING,MAN28170,634.46
Department of Health,Leicestershire Partnership NHS Trust,17/07/18,NURSE - BAND 2 - AGENCY,Access Bed Management Team,HCL NURSING,MAN28170,223.60
Department of Health,Leicestershire Partnership NHS Trust,17/07/18,Nurse - Band 6 -Agency,Adult City East CMHT - Merlyn Vaz,HCL NURSING,MAN28170,1718.67
Department of Health,Leicestershire Partnership NHS Trust,17/07/18,Nurse - Band 6 -Agency,Adult County Charnwood CMHT - Loughborough Base,HCL NURSING,MAN28170,1046.16
Department of Health,Leicestershire Partnership NHS Trust,17/07/18,NURSE - BAND 2 - AGENCY,Ashby Ward (Bradgate Unit),HCL NURSING,MAN28170,265.79
Department of Health,Leicestershire Partnership NHS Trust,17/07/18,NURSE - BAND 2 - AGENCY,Aston Ward (Bradgate Unit),HCL NURSING,MAN28170,318.97
Department of Health,Leicestershire Partnership NHS Trust,17/07/18,NURSE - BAND 5 - AGENCY,Aston Ward (Bradgate Unit),HCL NURSING,MAN28170,3042.79
Department of Health,Leicestershire Partnership NHS Trust,17/07/18,NURSE - BAND 2 - AGENCY,Beaumont Ward - Bradgate Unit,HCL NURSING,MAN28170,339.40
Department of Health,Leicestershire Partnership NHS Trust,17/07/18,NURSE - BAND 5 - AGENCY,Beaumont Ward - Bradgate Unit,HCL NURSING,MAN28170,2942.32
Department of Health,Leicestershire Partnership NHS Trust,17/07/18,NURSE - BAND 2 - AGENCY,Belvoir Psychiatric Intensive Care Unit,HCL NURSING,MAN28170,600.22
Department of Health,Leicestershire Partnership NHS Trust,17/07/18,NURSE - BAND 5 - AGENCY,Belvoir Psychiatric Intensive Care Unit,HCL NURSING,MAN28170,329.81
Department of Health,Leicestershire Partnership NHS Trust,17/07/18,NURSE - BAND 2 - AGENCY,Bosworth Ward - Bradgate Unit,HCL NURSING,MAN28170,500.54
Department of Health,Leicestershire Partnership NHS Trust,17/07/18,NURSE - BAND 5 - AGENCY,Bosworth Ward - Bradgate Unit,HCL NURSING,MAN28170,329.81
Department of Health,Leicestershire Partnership NHS Trust,17/07/18,NURSE - BAND 2 - AGENCY,Cedar (Willows),HCL NURSING,MAN28170,94.95
Department of Health,Leicestershire Partnership NHS Trust,17/07/18,Nurse - Band 6 -Agency,Crisis Resolution,HCL NURSING,MAN28170,7330.15
Department of Health,Leicestershire Partnership NHS Trust,17/07/18,Nurse - Band 6 -Agency,Deliberate Self Harm,HCL NURSING,MAN28170,5680.98
Department of Health,Leicestershire Partnership NHS Trust,17/07/18,NURSE - BAND 5 - AGENCY,Griffin Ward (HPC),HCL NURSING,MAN28170,1452.18
Department of Health,Leicestershire Partnership NHS Trust,17/07/18,NURSE - BAND 2 - AGENCY,Heather Ward,HCL NURSING,MAN28170,395.61
Department of Health,Leicestershire Partnership NHS Trust,17/07/18,NURSE - BAND 5 - AGENCY,Heather Ward,HCL NURSING,MAN28170,2474.25
Department of Health,Leicestershire Partnership NHS Trust,17/07/18,NURSE - BAND 2 - AGENCY,Phoenix Ward (HPC),HCL NURSING,MAN28170,481.79
Department of Health,Leicestershire Partnership NHS Trust,17/07/18,NURSE - BAND 2 - AGENCY,Thornton Ward - Bradgate Unit,HCL NURSING,MAN28170,211.93
Department of Health,Leicestershire Partnership NHS Trust,17/07/18,NURSE - BAND 2 - AGENCY,Watermead Ward (Bradgate Unit),HCL NURSING,MAN28170,334.34
Department of Health,Leicestershire Partnership NHS Trust,17/07/18,NURSE - BAND 5 - AGENCY,Watermead Ward (Bradgate Unit),HCL NURSING,MAN28170,320.14
Department of Health,Leicestershire Partnership NHS Trust,18/07/18,Water & Sewerage Charges,"Coalville Community Hospital (P138, LPT)",WATER PLUS,0865005329/INV01444245,14311.75
Department of Health,Leicestershire Partnership NHS Trust,18/07/18,Water & Sewerage Charges,"Narborough Health Centre (P117, LPT)",WATER PLUS,0865005329/INV01444245,2674.07
Department of Health,Leicestershire Partnership NHS Trust,18/07/18,Water & Sewerage Charges,"OSL House (P54, LPT)",WATER PLUS,0865005329/INV01444245,1961.89
Department of Health,Leicestershire Partnership NHS Trust,18/07/18,Water & Sewerage Charges,"Shepshed Health Centre (P123, LPT)",WATER PLUS,0865005329/INV01444245,1357.67
Department of Health,Leicestershire Partnership NHS Trust,18/07/18,Water & Sewerage Charges,"Stewart House (P61, LPT)",WATER PLUS,0865005329/INV01444245,4265.19
Department of Health,Leicestershire Partnership NHS Trust,18/07/18,Water & Sewerage Charges,"The Cedars (P19, LPT)",WATER PLUS,0865005329/INV01444245,1496.13
Department of Health,Leicestershire Partnership NHS Trust,18/07/18,Water & Sewerage Charges,"Westcotes Group -Westcotes House (P78, LPT)",WATER PLUS,0865005329/INV01444245,1740.53
Department of Health,Leicestershire Partnership NHS Trust,18/07/18,WIP Project Not in BS - Transport and Equipment,Work in Progress,NHS SUPPLY CHAIN (ST1450),9059001247,100267.39
Department of Health,Leicestershire Partnership NHS Trust,20/07/18,Internal Printing (machines and ink),Unallocated Budgets,LEXMARK INTERNATIONAL LTD,900650004591,34031.32
Department of Health,Leicestershire Partnership NHS Trust,23/07/18,Tax/SS Crs-LT1y-Deduction-Ers P11D,Balance Sheet Collection,H M REVENUE & CUSTOMS (IRT813),267PK001110871813MILE,84750.61
Department of Health,Leicestershire Partnership NHS Trust,23/07/18,Tax/SS Crs-LT1y-Deduction-Ers P11D,Balance Sheet Collection,H M REVENUE & CUSTOMS (IRT813),267PK001110871813CARS,151768.87
Department of Health,Leicestershire Partnership NHS Trust,23/07/18,Rent,360 Assurance - Corporate,COMM HLTH PARTNERSHIPS LTD,0060075190.,-35648.96
Department of Health,Leicestershire Partnership NHS Trust,23/07/18,Professional & Technical Agency,Adult City East CMHT - Merlyn Vaz,MSI RECRUITMENT,MSIR060718,1241.46
Department of Health,Leicestershire Partnership NHS Trust,23/07/18,OCCUPATIONAL THERAPIST - AGENCY,Adult City West CMHT - BHSCC,MSI RECRUITMENT,MSIR060718,876.62
Department of Health,Leicestershire Partnership NHS Trust,23/07/18,PHYSIOTHERAPY - AGENCY,City Community Therapy,MSI RECRUITMENT,MSIR060718,2881.98
Department of Health,Leicestershire Partnership NHS Trust,23/07/18,PHYSIOTHERAPY - AGENCY,City ICS,MSI RECRUITMENT,MSIR060718,3190.20
Department of Health,Leicestershire Partnership NHS Trust,23/07/18,PHYSIOTHERAPY - AGENCY,Coalville Snibston Ward,MSI RECRUITMENT,MSIR060718,1258.68
Department of Health,Leicestershire Partnership NHS Trust,23/07/18,PODIATRIST - AGENCY,County Podiatry Service,MSI RECRUITMENT,MSIR060718,2987.26
Department of Health,Leicestershire Partnership NHS Trust,23/07/18,PHYSIOTHERAPY - AGENCY,East Community Therapy,MSI RECRUITMENT,MSIR060718,1345.08
Department of Health,Leicestershire Partnership NHS Trust,23/07/18,PHYSIOTHERAPY - AGENCY,H&B Comm Hosp East Ward,MSI RECRUITMENT,MSIR060718,2265.62
Department of Health,Leicestershire Partnership NHS Trust,23/07/18,PHYSIOTHERAPY - AGENCY,Integrated Care Service - Rutland,MSI RECRUITMENT,MSIR060718,1052.80
Department of Health,Leicestershire Partnership NHS Trust,23/07/18,OCCUPATIONAL THERAPIST - AGENCY,MHSOP Community Therapy,MSI RECRUITMENT,MSIR060718,1191.54
Department of Health,Leicestershire Partnership NHS Trust,23/07/18,OCCUPATIONAL THERAPIST - AGENCY,MHSOP Inpatient Therapy - Evington,MSI RECRUITMENT,MSIR060718,517.56
Department of Health,Leicestershire Partnership NHS Trust,23/07/18,PHYSIOTHERAPY - AGENCY,Mental Health Physical Nurse Team,MSI RECRUITMENT,MSIR060718,2171.16
Department of Health,Leicestershire Partnership NHS Trust,23/07/18,OCCUPATIONAL THERAPIST - AGENCY,South East ICS,MSI RECRUITMENT,MSIR060718,2080.99
Department of Health,Leicestershire Partnership NHS Trust,23/07/18,OCCUPATIONAL THERAPIST - AGENCY,St Lukes Stroke Ward,MSI RECRUITMENT,MSIR060718,755.21
Department of Health,Leicestershire Partnership NHS Trust,23/07/18,OCCUPATIONAL THERAPIST - AGENCY,St Lukes Ward 3,MSI RECRUITMENT,MSIR060718,1896.38
Department of Health,Leicestershire Partnership NHS Trust,23/07/18,Drugs,Dementia Related Drugs and Investigations,LLOYDS PHARMACY,73591,27301.77
Department of Health,Leicestershire Partnership NHS Trust,23/07/18,Crs_NHS_LT1y -Resus Inventory Supplied.,Balance Sheet Collection,NHS SUPPLY CHAIN (ST1450),1019076403,48463.18
Department of Health,Leicestershire Partnership NHS Trust,24/07/18,Unitary Payment,"The Agnes Unit (AKA Assessment and Treatment Centre) (P85, LPT)",ARDEN PARTNERSHIP (LEICESTER),SI0010,110741.24
Department of Health,Leicestershire Partnership NHS Trust,24/07/18,Unitary Payment,"The Agnes Unit (AKA Assessment and Treatment Centre) (P85, LPT)",ARDEN PARTNERSHIP (LEICESTER),SI0008,114431.10
Department of Health,Leicestershire Partnership NHS Trust,24/07/18,Rent,County Hall,LEIC COUNTY COUNCIL,6277840,34488.50
Department of Health,Leicestershire Partnership NHS Trust,24/07/18,Nurse - Band 6 -Agency,Adult City East CMHT - Merlyn Vaz,HCL NURSING,MNA28196,1197.41
Department of Health,Leicestershire Partnership NHS Trust,24/07/18,Nurse - Band 6 -Agency,Adult County Charnwood CMHT - Loughborough Base,HCL NURSING,MNA28196,1883.09
Department of Health,Leicestershire Partnership NHS Trust,24/07/18,Nurse - Band 6 -Agency,Adult County North West Leicestershire CMHT,HCL NURSING,MNA28196,1308.68
Department of Health,Leicestershire Partnership NHS Trust,24/07/18,NURSE - BAND 5 - AGENCY,Agnes Unit Management,HCL NURSING,MNA28196,300.32
Department of Health,Leicestershire Partnership NHS Trust,24/07/18,NURSE - BAND 5 - AGENCY,Ashby Ward (Bradgate Unit),HCL NURSING,MNA28196,664.62
Department of Health,Leicestershire Partnership NHS Trust,24/07/18,NURSE - BAND 5 - AGENCY,Aston Ward (Bradgate Unit),HCL NURSING,MNA28196,2858.73
Department of Health,Leicestershire Partnership NHS Trust,24/07/18,NURSE - BAND 2 - AGENCY,Beaumont Ward - Bradgate Unit,HCL NURSING,MNA28196,190.22
Department of Health,Leicestershire Partnership NHS Trust,24/07/18,NURSE - BAND 5 - AGENCY,Beaumont Ward - Bradgate Unit,HCL NURSING,MNA28196,675.51
Department of Health,Leicestershire Partnership NHS Trust,24/07/18,NURSE - BAND 5 - AGENCY,Bosworth Ward - Bradgate Unit,HCL NURSING,MNA28196,1060.95
Department of Health,Leicestershire Partnership NHS Trust,24/07/18,Nurse - Band 6 -Agency,Crisis Resolution,HCL NURSING,MNA28196,5164.66
Department of Health,Leicestershire Partnership NHS Trust,24/07/18,Nurse - Band 6 -Agency,Deliberate Self Harm,HCL NURSING,MNA28196,4302.01
Department of Health,Leicestershire Partnership NHS Trust,24/07/18,NURSE - BAND 5 - AGENCY,Griffin Ward (HPC),HCL NURSING,MNA28196,2781.07
Department of Health,Leicestershire Partnership NHS Trust,24/07/18,NURSE - BAND 5 - AGENCY,Heather Ward,HCL NURSING,MNA28196,2111.81
Department of Health,Leicestershire Partnership NHS Trust,24/07/18,NURSE - BAND 5 - AGENCY,Mill Lodge,HCL NURSING,MNA28196,965.93
Department of Health,Leicestershire Partnership NHS Trust,24/07/18,NURSE - BAND 2 - AGENCY,Phoenix Ward (HPC),HCL NURSING,MNA28196,634.11
Department of Health,Leicestershire Partnership NHS Trust,24/07/18,NURSE - BAND 2 - AGENCY,Sycamore (Willows),HCL NURSING,MNA28196,264.35
Department of Health,Leicestershire Partnership NHS Trust,24/07/18,NURSE - BAND 2 - AGENCY,Thornton Ward - Bradgate Unit,HCL NURSING,MNA28196,198.29
Department of Health,Leicestershire Partnership NHS Trust,24/07/18,NURSE - BAND 5 - AGENCY,Thornton Ward - Bradgate Unit,HCL NURSING,MNA28196,259.30
Department of Health,Leicestershire Partnership NHS Trust,24/07/18,NURSE - BAND 2 - AGENCY,Watermead Ward (Bradgate Unit),HCL NURSING,MNA28196,415.58
Department of Health,Leicestershire Partnership NHS Trust,24/07/18,NURSE - BAND 5 - AGENCY,Watermead Ward (Bradgate Unit),HCL NURSING,MNA28196,726.86
Department of Health,Leicestershire Partnership NHS Trust,25/07/18,Drugs,Adult City East CMHT - St Peters,JANSSEN-CILAG LTD,930426283,15029.71
Department of Health,Leicestershire Partnership NHS Trust,25/07/18,Drugs,Adult County Drugs,JANSSEN-CILAG LTD,930426283,22544.56
Department of Health,Leicestershire Partnership NHS Trust,25/07/18,NURSE - BAND 2 - AGENCY,Beechwood Ward,HCL NURSING,MAN28171,223.60
Department of Health,Leicestershire Partnership NHS Trust,25/07/18,NURSE - BAND 5 - AGENCY,Beechwood Ward,HCL NURSING,MAN28171,1130.26
Department of Health,Leicestershire Partnership NHS Trust,25/07/18,Nurse - Band 6 -Agency,City East CMHT MHSOP,HCL NURSING,MAN28171,1046.16
Department of Health,Leicestershire Partnership NHS Trust,25/07/18,NURSE - BAND 5 - AGENCY,City ICS,HCL NURSING,MAN28171,1605.83
Department of Health,Leicestershire Partnership NHS Trust,25/07/18,NURSE - BAND 5 - AGENCY,City Planned Care - East,HCL NURSING,MAN28171,5612.43
Department of Health,Leicestershire Partnership NHS Trust,25/07/18,NURSE - BAND 5 - AGENCY,City Planned Care - West,HCL NURSING,MAN28171,3628.09
Department of Health,Leicestershire Partnership NHS Trust,25/07/18,Nurse - Band 6 -Agency,City West CMHT MHSOP,HCL NURSING,MAN28171,1069.88
Department of Health,Leicestershire Partnership NHS Trust,25/07/18,NURSE - BAND 5 - AGENCY,Clarendon Ward,HCL NURSING,MAN28171,393.35
Department of Health,Leicestershire Partnership NHS Trust,25/07/18,NURSE - BAND 2 - AGENCY,Coalville Snibston Ward,HCL NURSING,MAN28171,455.97
Department of Health,Leicestershire Partnership NHS Trust,25/07/18,NURSE - BAND 2 - AGENCY,Coalville Ward 2,HCL NURSING,MAN28171,218.93
Department of Health,Leicestershire Partnership NHS Trust,25/07/18,NURSE - BAND 2 - AGENCY,Coleman Ward,HCL NURSING,MAN28171,441.91
Department of Health,Leicestershire Partnership NHS Trust,25/07/18,NURSE - BAND 5 - AGENCY,Coleman Ward,HCL NURSING,MAN28171,293.08
Department of Health,Leicestershire Partnership NHS Trust,25/07/18,NURSE - BAND 5 - AGENCY,"East Planned Care - Melton,Syston,Rutland",HCL NURSING,MAN28171,2236.16
Department of Health,Leicestershire Partnership NHS Trust,25/07/18,NURSE - BAND 3 - AGENCY,"East Planned Care - Oadby,Wigston & Harborough",HCL NURSING,MAN28171,457.91
Department of Health,Leicestershire Partnership NHS Trust,25/07/18,NURSE - BAND 5 - AGENCY,"East Planned Care - Oadby,Wigston & Harborough",HCL NURSING,MAN28171,230.44
Department of Health,Leicestershire Partnership NHS Trust,25/07/18,NURSE - BAND 5 - AGENCY,Evening Service,HCL NURSING,MAN28171,1269.45
Department of Health,Leicestershire Partnership NHS Trust,25/07/18,NURSE - BAND 2 - AGENCY,Fielding Palmer Nursing,HCL NURSING,MAN28171,745.78
Department of Health,Leicestershire Partnership NHS Trust,25/07/18,NURSE - BAND 5 - AGENCY,Fielding Palmer Nursing,HCL NURSING,MAN28171,3707.72
Department of Health,Leicestershire Partnership NHS Trust,25/07/18,NURSE - BAND 2 - AGENCY,Gwendolen Ward,HCL NURSING,MAN28171,476.12
Department of Health,Leicestershire Partnership NHS Trust,25/07/18,NURSE - BAND 2 - AGENCY,H&B Comm Hosp East Ward,HCL NURSING,MAN28171,1095.47
Department of Health,Leicestershire Partnership NHS Trust,25/07/18,NURSE - BAND 5 - AGENCY,H&B Comm Hosp East Ward,HCL NURSING,MAN28171,386.06
Department of Health,Leicestershire Partnership NHS Trust,25/07/18,NURSE - BAND 2 - AGENCY,H&B Comm Hosp North Ward,HCL NURSING,MAN28171,1865.74
Department of Health,Leicestershire Partnership NHS Trust,25/07/18,NURSE - BAND 5 - AGENCY,H&B Comm Hosp North Ward,HCL NURSING,MAN28171,1325.42
Department of Health,Leicestershire Partnership NHS Trust,25/07/18,NURSE - BAND 2 - AGENCY,Kirby Ward,HCL NURSING,MAN28171,514.37
Department of Health,Leicestershire Partnership NHS Trust,25/07/18,NURSE - BAND 5 - AGENCY,Kirby Ward,HCL NURSING,MAN28171,307.32
Department of Health,Leicestershire Partnership NHS Trust,25/07/18,Nurse - Band 6 -Agency,MHSOP Integrated Care Team,HCL NURSING,MAN28171,1046.16
Department of Health,Leicestershire Partnership NHS Trust,25/07/18,NURSE - BAND 5 - AGENCY,North West ICS,HCL NURSING,MAN28171,617.75
Department of Health,Leicestershire Partnership NHS Trust,25/07/18,NURSE - BAND 5 - AGENCY,Rutland Ward Nursing,HCL NURSING,MAN28171,1765.91
Department of Health,Leicestershire Partnership NHS Trust,25/07/18,NURSE - BAND 5 - AGENCY,South East ICS,HCL NURSING,MAN28171,6556.95
Department of Health,Leicestershire Partnership NHS Trust,25/07/18,NURSE - BAND 2 - AGENCY,St Lukes Stroke Ward,HCL NURSING,MAN28171,211.93
Department of Health,Leicestershire Partnership NHS Trust,25/07/18,NURSE - BAND 5 - AGENCY,St Lukes Stroke Ward,HCL NURSING,MAN28171,1175.56
Department of Health,Leicestershire Partnership NHS Trust,25/07/18,NURSE - BAND 5 - AGENCY,St Lukes Ward 3,HCL NURSING,MAN28171,2709.57
Department of Health,Leicestershire Partnership NHS Trust,25/07/18,NURSE - BAND 2 - AGENCY,Welford Ward,HCL NURSING,MAN28171,393.70
Department of Health,Leicestershire Partnership NHS Trust,25/07/18,NURSE - BAND 5 - AGENCY,Welford Ward,HCL NURSING,MAN28171,312.72
Department of Health,Leicestershire Partnership NHS Trust,25/07/18,NURSE - BAND 3 - AGENCY,West Planned Care  - Charnwood Hub,HCL NURSING,MAN28171,282.38
Department of Health,Leicestershire Partnership NHS Trust,25/07/18,NURSE - BAND 5 - AGENCY,West Planned Care  - Charnwood Hub,HCL NURSING,MAN28171,2078.47
Department of Health,Leicestershire Partnership NHS Trust,25/07/18,NURSE - BAND 2 - AGENCY,Beechwood Ward,HCL NURSING,MAN28197,1107.92
Department of Health,Leicestershire Partnership NHS Trust,25/07/18,Nurse - Band 6 -Agency,City East CMHT MHSOP,HCL NURSING,MAN28197,836.93
Department of Health,Leicestershire Partnership NHS Trust,25/07/18,NURSE - BAND 5 - AGENCY,City ICS,HCL NURSING,MAN28197,2281.94
Department of Health,Leicestershire Partnership NHS Trust,25/07/18,NURSE - BAND 5 - AGENCY,City Planned Care - East,HCL NURSING,MAN28197,7561.69
Department of Health,Leicestershire Partnership NHS Trust,25/07/18,NURSE - BAND 5 - AGENCY,City Planned Care - West,HCL NURSING,MAN28197,4757.13
Department of Health,Leicestershire Partnership NHS Trust,25/07/18,NURSE - BAND 2 - AGENCY,Clarendon Ward,HCL NURSING,MAN28197,534.79
Department of Health,Leicestershire Partnership NHS Trust,25/07/18,NURSE - BAND 2 - AGENCY,Coalville Snibston Ward,HCL NURSING,MAN28197,903.94
Department of Health,Leicestershire Partnership NHS Trust,25/07/18,NURSE - BAND 5 - AGENCY,Coalville Snibston Ward,HCL NURSING,MAN28197,388.94
Department of Health,Leicestershire Partnership NHS Trust,25/07/18,NURSE - BAND 2 - AGENCY,Coalville Ward 2,HCL NURSING,MAN28197,184.13
Department of Health,Leicestershire Partnership NHS Trust,25/07/18,NURSE - BAND 2 - AGENCY,Coleman Ward,HCL NURSING,MAN28197,114.73
Department of Health,Leicestershire Partnership NHS Trust,25/07/18,NURSE - BAND 2 - AGENCY,Dalgliesh Ward,HCL NURSING,MAN28197,827.45
Department of Health,Leicestershire Partnership NHS Trust,25/07/18,NURSE - BAND 5 - AGENCY,Dalgliesh Ward,HCL NURSING,MAN28197,62.51
Department of Health,Leicestershire Partnership NHS Trust,25/07/18,NURSE - BAND 3 - AGENCY,East Planned Care - Blaby/Lutterworth,HCL NURSING,MAN28197,1426.72
Department of Health,Leicestershire Partnership NHS Trust,25/07/18,NURSE - BAND 5 - AGENCY,"East Planned Care - Melton,Syston,Rutland",HCL NURSING,MAN28197,3210.63
Department of Health,Leicestershire Partnership NHS Trust,25/07/18,NURSE - BAND 3 - AGENCY,"East Planned Care - Oadby,Wigston & Harborough",HCL NURSING,MAN28197,707.88
Department of Health,Leicestershire Partnership NHS Trust,25/07/18,NURSE - BAND 5 - AGENCY,"East Planned Care - Oadby,Wigston & Harborough",HCL NURSING,MAN28197,176.55
Department of Health,Leicestershire Partnership NHS Trust,25/07/18,NURSE - BAND 5 - AGENCY,Evening Service,HCL NURSING,MAN28197,1215.94
Department of Health,Leicestershire Partnership NHS Trust,25/07/18,NURSE - BAND 2 - AGENCY,Fielding Palmer Nursing,HCL NURSING,MAN28197,106.77
Department of Health,Leicestershire Partnership NHS Trust,25/07/18,NURSE - BAND 5 - AGENCY,Fielding Palmer Nursing,HCL NURSING,MAN28197,2073.17
Department of Health,Leicestershire Partnership NHS Trust,25/07/18,NURSE - BAND 2 - AGENCY,Gwendolen Ward,HCL NURSING,MAN28197,399.11
Department of Health,Leicestershire Partnership NHS Trust,25/07/18,NURSE - BAND 2 - AGENCY,H&B Comm Hosp East Ward,HCL NURSING,MAN28197,697.54
Department of Health,Leicestershire Partnership NHS Trust,25/07/18,NURSE - BAND 5 - AGENCY,H&B Comm Hosp East Ward,HCL NURSING,MAN28197,329.81
Department of Health,Leicestershire Partnership NHS Trust,25/07/18,NURSE - BAND 2 - AGENCY,H&B Comm Hosp North Ward,HCL NURSING,MAN28197,1437.48
Department of Health,Leicestershire Partnership NHS Trust,25/07/18,NURSE - BAND 5 - AGENCY,H&B Comm Hosp North Ward,HCL NURSING,MAN28197,803.73
Department of Health,Leicestershire Partnership NHS Trust,25/07/18,NURSE - BAND 2 - AGENCY,Kirby Ward,HCL NURSING,MAN28197,272.30
Department of Health,Leicestershire Partnership NHS Trust,25/07/18,NURSE - BAND 5 - AGENCY,Kirby Ward,HCL NURSING,MAN28197,313.93
Department of Health,Leicestershire Partnership NHS Trust,25/07/18,NURSE - BAND 2 - AGENCY,Lough Swithland Ward,HCL NURSING,MAN28197,213.53
Department of Health,Leicestershire Partnership NHS Trust,25/07/18,Nurse - Band 6 -Agency,MHSOP Integrated Care Team,HCL NURSING,MAN28197,2092.33
Department of Health,Leicestershire Partnership NHS Trust,25/07/18,NURSE - BAND 5 - AGENCY,North East ICS,HCL NURSING,MAN28197,426.02
Department of Health,Leicestershire Partnership NHS Trust,25/07/18,NURSE - BAND 2 - AGENCY,Rutland Ward Nursing,HCL NURSING,MAN28197,223.60
Department of Health,Leicestershire Partnership NHS Trust,25/07/18,NURSE - BAND 5 - AGENCY,South East ICS,HCL NURSING,MAN28197,7087.72
Department of Health,Leicestershire Partnership NHS Trust,25/07/18,NURSE - BAND 5 - AGENCY,South West ICS,HCL NURSING,MAN28197,381.95
Department of Health,Leicestershire Partnership NHS Trust,25/07/18,NURSE - BAND 2 - AGENCY,St Lukes Stroke Ward,HCL NURSING,MAN28197,608.59
Department of Health,Leicestershire Partnership NHS Trust,25/07/18,NURSE - BAND 5 - AGENCY,St Lukes Stroke Ward,HCL NURSING,MAN28197,1185.65
Department of Health,Leicestershire Partnership NHS Trust,25/07/18,NURSE - BAND 2 - AGENCY,St Lukes Ward 3,HCL NURSING,MAN28197,256.85
Department of Health,Leicestershire Partnership NHS Trust,25/07/18,NURSE - BAND 5 - AGENCY,St Lukes Ward 3,HCL NURSING,MAN28197,2911.43
Department of Health,Leicestershire Partnership NHS Trust,25/07/18,NURSE - BAND 2 - AGENCY,Welford Ward,HCL NURSING,MAN28197,562.07
Department of Health,Leicestershire Partnership NHS Trust,25/07/18,NURSE - BAND 5 - AGENCY,Welford Ward,HCL NURSING,MAN28197,285.08
Department of Health,Leicestershire Partnership NHS Trust,25/07/18,NURSE - BAND 3 - AGENCY,West Planned Care  - Charnwood Hub,HCL NURSING,MAN28197,518.54
Department of Health,Leicestershire Partnership NHS Trust,25/07/18,NURSE - BAND 5 - AGENCY,West Planned Care  - Charnwood Hub,HCL NURSING,MAN28197,1236.42
Department of Health,Leicestershire Partnership NHS Trust,27/07/18,Contract : Accomodation,Out of County Income - Inpateints Project,TURNING POINT,SC-TPS-00001535,-49507.67
Department of Health,Leicestershire Partnership NHS Trust,27/07/18,Contract : Accomodation,Out of County Income - Inpateints Project,TURNING POINT,SC-TPS-00001536,-49507.67
Department of Health,Leicestershire Partnership NHS Trust,27/07/18,Contract : Accomodation,Out of County Income - Inpateints Project,TURNING POINT,SC-TPS-00001537,-49507.67
Department of Health,Leicestershire Partnership NHS Trust,27/07/18,Contract : Accomodation,Out of County Income - Inpateints Project,TURNING POINT,SI-TPS-00018903,48353.83
Department of Health,Leicestershire Partnership NHS Trust,27/07/18,Contract : Accomodation,Out of County Income - Inpateints Project,TURNING POINT,SI-TPS-00018906,48353.83
Department of Health,Leicestershire Partnership NHS Trust,27/07/18,Contract : Accomodation,Out of County Income - Inpateints Project,TURNING POINT,SI-TPS-00018905,48353.83
Department of Health,Leicestershire Partnership NHS Trust,27/07/18,Contract : Accomodation,Out of County Income - Inpateints Project,TURNING POINT,SI-TPS-00018904,48353.83
Department of Health,Leicestershire Partnership NHS Trust,30/07/18,Med GP Trainees,Medical Trainees,ST.HELENS & KNOWSLEY NHS TRUST,16776756,60000.00
Department of Health,Leicestershire Partnership NHS Trust,30/07/18,Rent,"St Peters Health Center (Part 1st and 2nd floors) (P66, LPT)",LEICESTER LIFT CO,LEP1/S0144,26127.54
Department of Health,Leicestershire Partnership NHS Trust,30/07/18,Crs_NHS_LT1y -Resus Inventory Supplied.,Balance Sheet Collection,NHS SUPPLY CHAIN (ST1450),1019081685,42832.39
Department of Health,Leicestershire Partnership NHS Trust,30/07/18,WIP Project Not in BS - Buildings excl Dwellings,Work in Progress,INTERSERVE CONSTRUCTION LTD,VEM54801,45971.87
Department of Health,Leicestershire Partnership NHS Trust,30/07/18,Rent,360 Assurance - Corporate,COMM HLTH PARTNERSHIPS LTD,50406799,64750.00
Department of Health,Leicestershire Partnership NHS Trust,30/07/18,Rent,360 Assurance - Corporate,COMM HLTH PARTNERSHIPS LTD,50406796,-33300.00
Department of Health,Leicestershire Partnership NHS Trust,30/07/18,Rent,360 Assurance - Corporate,COMM HLTH PARTNERSHIPS LTD,50406797,-29627.15
